fUST/lending_fUST_20251202
["ID","MTS","AMOUNT","RATE_DAILY","PERIOD"]
[395345020,1764640046097,-154.31933959,9.669e-05,2]
[395345021,1764640046118,-413.46805727,9.984e-05,2]
[395345022,1764640046138,-602.90059472,9.984e-05,2]
[395345087,1764640169776,1000.0,0.00011,3]
[395345128,1764640232514,-156.89247262,0.00010051,2]
[395345129,1764640232525,-810.74579287,0.00010069,2]
[395345130,1764640232536,-607.35538836,0.00010069,2]
[395345142,1764640238253,-658.53515577,0.00010069,2]
[395345143,1764640238263,-151.2329528,0.00010113,2]
[395345144,1764640238272,-522.4058538,0.00010158,2]
[395345145,1764640238281,-1637.61433659,0.00010159,2]
[395345146,1764640238293,-1181.34538107,0.00010159,2]
[395345147,1764640238304,-504.32018305,0.00010159,2]
[395345148,1764640238316,-78809.42672327,0.00010159,2]
[395345149,1764640238328,-1057.43089812,0.00010159,2]
[395345150,1764640238340,-320.0,0.00010159,2]
[395345151,1764640238351,-1224.82266252,0.00010159,2]
[395345152,1764640238363,-540.61021453,0.00010159,2]
[395345153,1764640238414,-500559.311938,0.00010159,2]
[395345154,1764640238430,-8246.18349024,0.00010159,2]
[395345155,1764640238441,-3520.04,0.00010159,2]
[395345162,1764640240375,-4846.53860153,0.00010159,2]
[395345180,1764640243704,-567.69097355,0.00010159,2]
[395345191,1764640246381,-5600.0,0.00010159,2]
[395345208,1764640349949,30000.0,0.0002,30]
[395345209,1764640442609,250.0,0.0002,30]
[395345237,1764640837910,2197.82060609,9.213e-05,2]
[395345259,1764640918165,275.3945202,8.951e-05,2]
[395345298,1764641138284,-174.5405965,9.121e-05,2]
[395345321,1764641227135,-151.36133514,9.098e-05,2]
[395345322,1764641227155,-11.17043395,9.19e-05,2]
[395345324,1764641230100,-140.19090119,9.19e-05,2]
[395345325,1764641230124,-300.0,9.305e-05,2]
[395345326,1764641230147,-1353.14280991,9.306e-05,2]
[395345330,1764641245131,-273.65448325,9.306e-05,2]
[395345383,1764641349100,-5319.33195239,9.213e-05,2]
[395345384,1764641349124,-374.09075261,9.248e-05,2]
[395345385,1764641349144,-300.0,9.305e-05,2]
[395345386,1764641349165,-4758.02846243,9.306e-05,2]
[395345387,1764641360079,-287.64900671,9.213e-05,2]
[395345388,1764641360099,-199.79995596,9.306e-05,2]
[395345398,1764641402987,250.0,0.0002,30]
[395345414,1764641432383,-87.84905075,9.306e-05,2]
[395345416,1764641432393,-931.86,9.99e-05,2]
[395345418,1764641432403,-931.86,9.99e-05,2]
[395345420,1764641432412,-418.43094925,0.00010053,2]
[395345579,1764641438412,-745.20190271,0.00010053,2]
[395345580,1764641438466,-913.00348504,0.00010053,2]
[395345581,1764641438476,-365.68409766,0.00010058,2]
[395345582,1764641438486,-300.0,0.00010058,2]
[395345583,1764641438496,-3111.42250601,0.00010059,2]
[395345584,1764641438507,-14379.46498603,0.00010059,2]
[395345585,1764641438519,-3320.59638572,0.00010059,2]
[395345586,1764641438532,-21431.27660912,0.00010059,2]
[395345598,1764641443515,-5019.57120261,0.00010059,2]
[395345614,1764641446470,-7179.73673393,9.958e-05,2]
[395345617,1764641446481,-1470.26326607,9.958e-05,2]
[395345622,1764641446524,-11428.12514361,9.958e-05,2]
[395345624,1764641446533,-2214.26762439,0.00010059,2]
[395345772,1764641493183,-500.0,0.00021918,120]
[395345773,1764641493255,-263.39404588,0.00023632,110]
[395345774,1764641493331,-187.4381478,0.00024658,120]
[395345775,1764641493465,-291.1107724,0.00021866,56]
[395345776,1764641493494,-263.39404588,0.00022019,56]
[395345777,1764641493523,-27.71672652,0.00023632,110]
[395345778,1764641493547,-263.39404588,0.00023938,110]
[395345779,1764641493572,-312.5618522,0.00024658,120]
[395345780,1764641493596,-187.4381478,0.00025,120]
[395345781,1764641493622,-332.64381,0.00027,120]
[395345782,1764641493644,-272.48496,0.00027,120]
[395345783,1764641493665,-200.0,0.00027,120]
[395345784,1764641516601,213.60286581,0.00022721,30]
[395345785,1764641516906,315.38910341,0.00021751,56]
[395345786,1764641555031,325.13657118,0.0001401,9]
[395345787,1764641601658,500.0,0.00021918,120]
[395345788,1764641601969,500.0,0.00024658,120]
[395345827,1764641703811,218.68711574,0.0002739,30]
[395345841,1764641921757,810.74579287,0.0001401,9]
[395345900,1764642220349,500.0,0.00021918,120]
[395345901,1764642220680,305.12877,0.00024658,120]
[395345904,1764642253559,167.11701834,0.0001401,9]
[395345907,1764642362548,250.0,0.0002,30]
[395345909,1764642397141,-169.8713006,9.858e-05,2]
[395345922,1764642433083,-130.1286994,9.858e-05,2]
[395345923,1764642433106,-300.0,9.957e-05,2]
[395345924,1764642433134,-573.72060413,9.958e-05,2]
[395345925,1764642434115,-1140.93658558,9.958e-05,2]
[395345926,1764642437236,-1317.92965886,9.958e-05,2]
[395345931,1764642533345,500.0,0.00021918,120]
[395345983,1764642631719,-227.03880379,9.858e-05,2]
[395345985,1764642631730,-231.0,9.858e-05,2]
[395345988,1764642631739,-154.70297627,9.908e-05,2]
[395345990,1764642631750,-223.0315306,9.953e-05,2]
[395345993,1764642631759,-300.0,9.956e-05,2]
[395345996,1764642631769,-15903.54400506,9.957e-05,2]
[395346029,1764642637714,-546.23943408,9.956e-05,2]
[395346030,1764642637724,-500.0,9.956e-05,2]
[395346031,1764642637734,-506.04973819,9.956e-05,2]
[395346032,1764642637743,-541.2495716,9.956e-05,2]
[395346033,1764642637756,-500.0,9.956e-05,2]
[395346034,1764642637766,-500.0,9.956e-05,2]
[395346035,1764642637776,-197.52568988,9.956e-05,2]
[395346036,1764642637787,-136.01689628,9.956e-05,2]
[395346037,1764642637798,-500.0,9.956e-05,2]
[395346038,1764642637808,-500.0,9.956e-05,2]
[395346039,1764642637817,-500.0,9.956e-05,2]
[395346040,1764642637826,-500.0,9.956e-05,2]
[395346042,1764642637835,-500.0,9.956e-05,2]
[395346044,1764642637844,-255.97886837,9.956e-05,2]
[395346045,1764642637854,-3615.70022241,9.957e-05,2]
[395346046,1764642637865,-6198.9802446,9.957e-05,2]
[395346047,1764642637876,-9904.85776516,9.957e-05,2]
[395346048,1764642637887,-6246.1655516,9.957e-05,2]
[395346049,1764642637896,-16316.53655221,9.959e-05,2]
[395346050,1764642637907,-21015.40392329,9.959e-05,2]
[395346054,1764642639789,-1086.86268639,9.959e-05,2]
[395346055,1764642639845,-614.8492,9.959e-05,2]
[395346073,1764642643248,-768.90923381,9.959e-05,2]
[395346075,1764642645809,-391.50697925,9.959e-05,2]
[395346086,1764642762284,150.02,9e-05,2]
[395346097,1764642844097,291.1107724,0.00021918,120]
[395346098,1764642844122,208.8892276,0.00021918,120]
[395346130,1764643135532,1297.23864005,0.0001108,3]
[395346136,1764643258491,1000.0,0.00011,3]
[395346140,1764643322295,250.0,0.0002,30]
[395346144,1764643391205,303.40954767,8.943e-05,2]
[395346146,1764643459444,54.50481828,0.00021918,120]
[395346151,1764643521202,557.26162998,0.0001401,9]
[395346152,1764643534816,-303.40954767,9.033e-05,2]
[395346153,1764643534840,-151.60891674,9.045e-05,2]
[395346154,1764643534864,-300.0,9.133e-05,2]
[395346155,1764643534894,-14327.5944411,9.134e-05,2]
[395346156,1764643534916,-164.39222554,9.651e-05,2]
[395346157,1764643534939,-207.299,9.76e-05,2]
[395346158,1764643534962,-481.50473179,9.858e-05,2]
[395346159,1764643543279,-353.28200843,9.859e-05,2]
[395346160,1764643556945,-13363.19113716,9.859e-05,2]
[395346161,1764643625092,-300.0,9.661e-05,2]
[395346162,1764643625113,-300.0,9.759e-05,2]
[395346163,1764643625133,-300.0,9.858e-05,2]
[395346164,1764643625166,-262.7823865,9.859e-05,2]
[395346166,1764643634071,-1321.85467575,9.76e-05,2]
[395346235,1764643831857,-8144.74532425,9.565e-05,2]
[395346236,1764643831866,-8144.74532425,9.662e-05,2]
[395346237,1764643831875,-151.6631252,9.711e-05,2]
[395346238,1764643831887,-218.0,9.759e-05,2]
[395346239,1764643831896,-223.0315306,9.853e-05,2]
[395346240,1764643831906,-5932.3662571,9.859e-05,2]
[395346247,1764643837992,-11185.98221043,9.76e-05,2]
[395346248,1764643838002,-3606.28678681,9.859e-05,2]
[395346249,1764643838039,-4114.16,9.859e-05,2]
[395346250,1764643838050,-23322.64253795,9.859e-05,2]
[395346251,1764643838062,-4404.5433117,9.859e-05,2]
[395346252,1764643838073,-3484.07439681,9.859e-05,2]
[395346261,1764643840039,-25416.18009161,9.859e-05,2]
[395346262,1764643840051,-8015.87471478,9.859e-05,2]
[395346263,1764643840062,-1525.57541363,9.859e-05,2]
[395346264,1764643840095,-594.4003059,9.859e-05,2]
[395346265,1764643840106,-1595.8,9.859e-05,2]
[395346266,1764643840117,-636.29642442,9.859e-05,2]
[395346267,1764643840128,-1242.57155899,9.859e-05,2]
[395346277,1764643843432,-8544.43203038,9.859e-05,2]
[395346278,1764643843445,-5533.5400021,9.859e-05,2]
[395346279,1764643843455,-9640.72214699,9.859e-05,2]
[395346375,1764644124784,216.3270423,8.882e-05,2]
[395346397,1764644282443,250.0,0.0002,30]
[395346463,1764644734117,-174.5405965,9.185e-05,2]
[395346464,1764644734141,-17.87414119,9.278e-05,2]
[395346493,1764644825086,-151.6570894,9.048e-05,2]
[395346494,1764644825108,-151.6570894,9.139e-05,2]
[395346495,1764644825129,-151.6570894,9.232e-05,2]
[395346496,1764644825148,-197.09939297,9.461e-05,2]
[395346497,1764644825167,-788.39757189,9.461e-05,2]
[395346498,1764644825191,-305.71757451,9.461e-05,2]
[395346499,1764644826083,-162.53176909,9.461e-05,2]
[395346512,1764644847120,-273.65448325,9.272e-05,2]
[395346560,1764644954084,1305.64519315,8.988e-05,2]
[395346561,1764644955593,2749.20369668,8.778e-05,2]
[395346562,1764644955616,3839.05645592,8.778e-05,2]
[395346564,1764644959067,-170.36522451,9.272e-05,2]
[395346565,1764644959088,-1157.09998201,9.366e-05,2]
[395346566,1764644959108,-500.0,9.376e-05,2]
[395346567,1764644959128,-92.99979993,9.564e-05,2]
[395346624,1764645032137,-72.83920007,9.564e-05,2]
[395346625,1764645032147,-223.0315306,9.753e-05,2]
[395346626,1764645032158,-500.0,9.758e-05,2]
[395346627,1764645032168,-500.0,9.758e-05,2]
[395346628,1764645032178,-483.29766791,9.758e-05,2]
[395346629,1764645032188,-179.18520785,9.758e-05,2]
[395346630,1764645032198,-300.0,9.758e-05,2]
[395346631,1764645032208,-47486.45323549,9.759e-05,2]
[395346668,1764645038430,-10634.27124687,9.759e-05,2]
[395347277,1764645242741,250.0,0.0002,30]
[395347342,1764645561673,241413.594,0.0002,30]
[395347362,1764645854436,847.6193212,8.751e-05,2]
[395347364,1764645856799,169.8713006,8.664e-05,2]
[395347365,1764645857860,300.80759373,0.00011068,3]
[395347372,1764645950114,-150.0,9.327e-05,2]
[395347373,1764645950134,-165.839,9.466e-05,2]
[395347374,1764645950154,-142.10654017,9.469e-05,2]
[395347378,1764646013099,-150.0,9.561e-05,2]
[395347379,1764646013124,-19.8713006,9.653e-05,2]
[395347380,1764646030091,-203.16023,9.557e-05,2]
[395347381,1764646030113,-203.16023,9.653e-05,2]
[395347382,1764646030139,-406.73397305,9.658e-05,2]
[395347383,1764646030161,-303.67175441,9.658e-05,2]
[395347384,1764646030182,-289.6917317,9.658e-05,2]
[395347385,1764646030204,-500.0,9.658e-05,2]
[395347386,1764646030224,-171.0,9.658e-05,2]
[395347387,1764646030245,-300.0,9.658e-05,2]
[395347388,1764646030268,-8412.24493252,9.659e-05,2]
[395347389,1764646032080,-1140.93658558,9.659e-05,2]
[395347394,1764646037106,-1302.41493162,9.659e-05,2]
[395347399,1764646146075,-1470.0,9.562e-05,2]
[395347402,1764646202417,250.0,0.0002,30]
[395347424,1764646232417,-639.49179305,9.562e-05,2]
[395347425,1764646232428,-708.21465919,9.562e-05,2]
[395347426,1764646232472,-2148.46527015,9.562e-05,2]
[395347427,1764646232482,-223.0315306,9.653e-05,2]
[395347428,1764646232491,-300.0,9.658e-05,2]
[395347429,1764646232509,-793.93319925,9.659e-05,2]
[395347453,1764646238699,-82255.83349854,9.659e-05,2]
[395347981,1764646243992,-470.11336297,9.659e-05,2]
[395348126,1764646246630,-604.017359,9.659e-05,2]
[395348327,1764646757181,1000.0,0.00011,3]
[395348371,1764647073890,334.39396048,8.898e-05,2]
[395348372,1764647076092,382.16452626,8.898e-05,2]
[395348376,1764647135123,-300.0,9.087e-05,2]
[395348377,1764647135145,-63.74836161,9.179e-05,2]
[395348405,1764647162437,250.0,0.0002,30]
[395348408,1764647230077,-652.81012513,9.179e-05,2]
[395348409,1764647230099,-150.0,9.319e-05,2]
[395348410,1764647230119,-165.839,9.368e-05,2]
[395348411,1764647230140,-223.0315306,9.553e-05,2]
[395348412,1764647230161,-329.28469533,9.558e-05,2]
[395348413,1764647230182,-774.67014228,9.558e-05,2]
[395348420,1764647238086,-725.32985772,9.462e-05,2]
[395348421,1764647238107,-425.32985772,9.558e-05,2]
[395348422,1764647238126,-26.08592557,9.558e-05,2]
[395348472,1764647358079,-157.02708327,9.447e-05,2]
[395348473,1764647358099,-150.0,9.454e-05,2]
[395348474,1764647358119,-273.91407443,9.462e-05,2]
[395348475,1764647358139,-300.0,9.558e-05,2]
[395348476,1764647358162,-54739.63247232,9.559e-05,2]
[395348522,1764647431648,-274.0,9.458e-05,2]
[395348524,1764647431657,-69146.18487769,9.459e-05,2]
[395348682,1764647437740,-230.49928673,9.458e-05,2]
[395348683,1764647437749,-838.66312807,9.459e-05,2]
[395348684,1764647437762,-498.8032675,9.459e-05,2]
[395348690,1764647437952,-4281.25880143,9.459e-05,2]
[395349358,1764647445779,-1255.23123063,9.459e-05,2]
[395349359,1764647445981,-13580.929138,9.459e-05,2]
[395349696,1764647854206,165.84,8.994e-05,2]
[395349697,1764647876857,165.84,8.994e-05,2]
[395349698,1764647899619,165.84,8.994e-05,2]
[395349699,1764647922124,165.84,8.994e-05,2]
[395349700,1764647944257,165.84,8.994e-05,2]
[395349701,1764647952377,165.84,8.994e-05,2]
[395349710,1764647975805,150.0,8.972e-05,2]
[395349715,1764647998170,150.0,8.972e-05,2]
[395349716,1764648020222,150.0,8.972e-05,2]
[395349717,1764648043284,150.0,8.972e-05,2]
[395349718,1764648065751,150.0,8.972e-05,2]
[395349719,1764648087706,150.0,8.972e-05,2]
[395349720,1764648109892,150.0,8.972e-05,2]
[395349721,1764648122196,250.0,0.0002,30]
[395349722,1764648131904,150.0,8.972e-05,2]
[395349723,1764648154032,150.0,8.972e-05,2]
[395349724,1764648170097,150.0,8.972e-05,2]
[395349725,1764648193636,150.0,8.972e-05,2]
[395349726,1764648215559,150.0,8.972e-05,2]
[395349727,1764648237988,150.0,8.972e-05,2]
[395349728,1764648260402,150.0,8.972e-05,2]
[395349729,1764648282448,150.0,8.972e-05,2]
[395349730,1764648283320,374.01746946,8.898e-05,2]
[395349731,1764648304446,150.0,8.972e-05,2]
[395349732,1764648326563,150.0,8.972e-05,2]
[395349733,1764648340122,-150.0,9.063e-05,2]
[395349734,1764648340142,-59.54810008,9.109e-05,2]
[395349736,1764648431081,-90.45189992,9.109e-05,2]
[395349737,1764648431101,-165.84,9.27e-05,2]
[395349738,1764648431124,-2566.44124902,9.359e-05,2]
[395349739,1764648432087,-162.53176909,9.359e-05,2]
[395349740,1764648452134,-273.65448325,9.172e-05,2]
[395349742,1764648486307,159.4,0.00021918,120]
[395349743,1764648545070,-2343.22216089,9.172e-05,2]
[395349744,1764648545097,-276.49987607,9.265e-05,2]
[395349745,1764648563082,-1055.45140075,9.172e-05,2]
[395349746,1764648568067,-1284.92536732,9.172e-05,2]
[395349747,1764648568088,-150.0,9.219e-05,2]
[395349748,1764648568110,-840.4801918,9.265e-05,2]
[395349758,1764648631930,-363.89641922,9.172e-05,2]
[395349762,1764648631983,-1017.40640817,9.172e-05,2]
[395349840,1764648638051,-118.59374888,9.172e-05,2]
[395349842,1764648638060,-653.50719819,9.357e-05,2]
[395349849,1764648638113,-546.49280181,9.357e-05,2]
[395349851,1764648638127,-161.34950071,9.358e-05,2]
[395349853,1764648638139,-500.0,9.358e-05,2]
[395349855,1764648638148,-500.0,9.358e-05,2]
[395349857,1764648638158,-500.0,9.358e-05,2]
[395349860,1764648638168,-500.0,9.358e-05,2]
[395349863,1764648638177,-500.0,9.358e-05,2]
[395349865,1764648638187,-500.0,9.358e-05,2]
[395349867,1764648638196,-500.0,9.358e-05,2]
[395349869,1764648638206,-500.0,9.358e-05,2]
[395349871,1764648638216,-500.0,9.358e-05,2]
[395349873,1764648638225,-500.0,9.358e-05,2]
[395349875,1764648638235,-500.0,9.358e-05,2]
[395349876,1764648638245,-500.0,9.358e-05,2]
[395349877,1764648638254,-500.0,9.358e-05,2]
[395349878,1764648638263,-453.76212344,9.358e-05,2]
[395349879,1764648638273,-218.07806282,9.358e-05,2]
[395350030,1764648640100,-281.92193718,9.358e-05,2]
[395350032,1764648640111,-279.57216935,9.358e-05,2]
[395350034,1764648640121,-500.0,9.358e-05,2]
[395350036,1764648640130,-290.93086915,9.358e-05,2]
[395350434,1764648646083,-209.06913085,9.358e-05,2]
[395350435,1764648646313,-5894.84666578,9.359e-05,2]
[395350436,1764648646330,-608.11491716,9.359e-05,2]
[395350441,1764648851798,258.84074731,8.989e-05,2]
[395350442,1764648873814,258.84074731,8.989e-05,2]
[395350443,1764648896374,258.84074731,8.989e-05,2]
[395350444,1764648918770,258.84074731,8.989e-05,2]
[395350445,1764648934249,258.84074731,8.989e-05,2]
[395350446,1764648957439,150.0,8.945e-05,2]
[395350447,1764648980170,150.0,8.945e-05,2]
[395350448,1764649003192,150.0,8.945e-05,2]
[395350449,1764649082489,250.0,0.0002,30]
[395350450,1764649139050,150.0,8.945e-05,2]
[395350451,1764649356080,150.0,8.945e-05,2]
[395350452,1764649378323,150.0,8.99e-05,2]
[395350454,1764649386532,239.57571087,8.99e-05,2]
[395350455,1764649401672,1171.63356904,8.99e-05,2]
[395350457,1764649551129,-452.49163822,9.08e-05,2]
[395350462,1764649603099,-169.8713006,9.08e-05,2]
[395350463,1764649638087,-1140.93658558,9.08e-05,2]
[395350464,1764649643131,-1289.84800256,9.08e-05,2]
[395350466,1764649725248,244.96999907,0.00011,3]
[395350467,1764649746078,-671.85247304,9.08e-05,2]
[395350468,1764649746097,-150.0,9.08e-05,2]
[395350469,1764649746117,-300.0,9.255e-05,2]
[395350470,1764649746136,-500.0,9.256e-05,2]
[395350471,1764649746158,-500.0,9.256e-05,2]
[395350472,1764649746179,-153.55308608,9.256e-05,2]
[395350473,1764649756076,-346.44691392,9.256e-05,2]
[395350474,1764649756101,-283.56850088,9.256e-05,2]
[395350475,1764649756122,-500.0,9.256e-05,2]
[395350476,1764649756142,-500.0,9.256e-05,2]
[395350477,1764649756161,-500.0,9.256e-05,2]
[395350478,1764649756181,-500.0,9.256e-05,2]
[395350479,1764649756201,-500.0,9.256e-05,2]
[395350480,1764649756221,-500.0,9.256e-05,2]
[395350481,1764649756243,-454.28330626,9.256e-05,2]
[395350482,1764649756265,-429.4755945,9.256e-05,2]
[395350483,1764649756285,-500.0,9.256e-05,2]
[395350484,1764649756304,-192.0,9.256e-05,2]
[395350485,1764649756322,-2899.84413716,9.257e-05,2]
[395350534,1764649838171,-168.0,9.256e-05,2]
[395350536,1764649838181,-3236.79381245,9.257e-05,2]
[395350547,1764649838280,-1500.0,9.257e-05,2]
[395350738,1764649840212,-359.50100004,9.257e-05,2]
[395351195,1764649846423,-5989.25743496,9.257e-05,2]
[395352270,1764649982910,250.0,0.0002,30]
[395352271,1764650340365,150.0,8.982e-05,2]
[395352272,1764650404955,443.10796668,0.00011,3]
[395352273,1764650557240,150.0,8.983e-05,2]
[395352274,1764650595691,150.0,8.935e-05,2]
[395352275,1764650617721,150.0,8.935e-05,2]
[395352277,1764650733090,-150.0,9.025e-05,2]
[395352278,1764650733110,-150.0,9.116e-05,2]
[395352279,1764650733130,-221.50139555,9.157e-05,2]
[395352291,1764650827085,-213.49860445,9.065e-05,2]
[395352292,1764650827106,-150.0,9.111e-05,2]
[395352293,1764650827127,-213.49860445,9.157e-05,2]
[395352294,1764650827146,-611.05866827,9.158e-05,2]
[395352299,1764650942631,250.0,0.0002,30]
[395352300,1764650949184,-766.5701522,9.066e-05,2]
[395352301,1764650950073,-168.26454833,9.066e-05,2]
[395352302,1764650962110,-335.33559802,9.066e-05,2]
[395352303,1764650962136,-711.37256285,9.158e-05,2]
[395352304,1764650966105,-3941.97369542,9.158e-05,2]
[395352306,1764651032428,-4854.10764801,9.158e-05,2]
[395352307,1764651032438,-269.94173272,9.158e-05,2]
[395352308,1764651032447,-500.0,9.158e-05,2]
[395352310,1764651032457,-500.0,9.158e-05,2]
[395352312,1764651032466,-500.0,9.158e-05,2]
[395352314,1764651032475,-500.0,9.158e-05,2]
[395352316,1764651032484,-500.0,9.158e-05,2]
[395352317,1764651032493,-592.29304112,9.158e-05,2]
[395352318,1764651032502,-500.0,9.158e-05,2]
[395352319,1764651032512,-500.0,9.158e-05,2]
[395352320,1764651032522,-500.0,9.158e-05,2]
[395352321,1764651032531,-47068.25999432,9.159e-05,2]
[395352349,1764651038427,-118866.64099278,9.159e-05,2]
[395352351,1764651038438,-100000.0,9.159e-05,2]
[395352357,1764651038482,-6146.25790288,9.159e-05,2]
[395352364,1764651038538,-2960.73088,9.159e-05,2]
[395352368,1764651038550,-1074.99956033,9.159e-05,2]
[395352589,1764651041055,-125748.46712388,9.159e-05,2]
[395352592,1764651041073,-661.98869106,9.159e-05,2]
[395352594,1764651041083,-675.61857851,9.159e-05,2]
[395352863,1764651043662,-354.48000061,9.159e-05,2]
[395353159,1764651046585,-2366.46450234,9.159e-05,2]
[395355392,1764651350082,171.6985187,8.976e-05,2]
[395355393,1764651398483,322.66,8.999e-05,2]
[395355394,1764651572082,3071.6369359,8.203e-05,2]
[395355395,1764651608346,168.42819702,8.89e-05,2]
[395355396,1764651611533,303.17075464,8.89e-05,2]
[395355397,1764651613951,538.97023047,8.89e-05,2]
[395355398,1764651702643,173.882,8.878e-05,2]
[395355399,1764651702703,184.31097974,8.878e-05,2]
[395355400,1764651832626,444.0908437,8.966e-05,2]
[395355401,1764651855394,444.0908437,8.966e-05,2]
[395355402,1764651902351,250.0,0.0002,30]
[395355403,1764651920527,273.65448325,8.966e-05,2]
[395355404,1764652030148,-162.53176909,9.057e-05,2]
[395355405,1764652040133,-394.17542527,9.057e-05,2]
[395355406,1764652088400,276.49987607,8.966e-05,2]
[395355407,1764652096246,1547.0,8.966e-05,2]
[395355408,1764652118618,796.22216089,8.966e-05,2]
[395355410,1764652213884,485.0,0.0002,30]
[395355433,1764652232577,-647.0,9.057e-05,2]
[395355434,1764652232586,-150.0,9.057e-05,2]
[395355436,1764652232596,-117.38714063,9.058e-05,2]
[395355438,1764652232607,-279.65537021,9.058e-05,2]
[395355442,1764652232635,-113.21227151,9.058e-05,2]
[395355444,1764652232645,-300.0,9.058e-05,2]
[395355446,1764652232654,-300.0,9.058e-05,2]
[395355448,1764652232663,-300.0,9.058e-05,2]
[395355450,1764652232672,-300.0,9.058e-05,2]
[395355452,1764652232682,-170.04269203,9.058e-05,2]
[395355454,1764652232694,-1029.95730797,9.058e-05,2]
[395355458,1764652232703,-325.91974624,9.059e-05,2]
[395355462,1764652232714,-149654.35190109,9.059e-05,2]
[395355466,1764652232733,-1238.65700788,9.059e-05,2]
[395355468,1764652232744,-34067.10314481,9.059e-05,2]
[395355478,1764652238578,-2663.51930643,9.059e-05,2]
[395355479,1764652238589,-314.83229562,9.059e-05,2]
[395355480,1764652238666,-50040.28837533,9.059e-05,2]
[395355481,1764652238679,-4531.596537,9.059e-05,2]
[395355596,1764652240659,-1000.0,9.059e-05,2]
[395355915,1764652243664,-911.75,9.059e-05,2]
[395355919,1764652243693,-34.51887778,9.059e-05,2]
[395356212,1764652246811,-12120.0,9.059e-05,2]
[395356224,1764652246920,-1060.13935512,9.059e-05,2]
[395356231,1764652246977,-9867.80348597,9.059e-05,2]
[395356235,1764652247006,-21.36139104,9.059e-05,2]
[395356788,1764652302671,173.883,8.878e-05,2]
[395356789,1764652317285,210.25940227,0.00021687,56]
[395356790,1764652385357,1441.17166454,0.0001401,9]
[395356791,1764652452061,7412.22512554,8.959e-05,2]
[395356792,1764652511276,203.8498923,8.064e-05,2]
[395356793,1764652544728,1779.0,8.867e-05,2]
[395356794,1764652553124,1779.0,8.867e-05,2]
[395356795,1764652569184,1779.0,8.867e-05,2]
[395356796,1764652577031,1779.0,8.867e-05,2]
[395356797,1764652592459,1779.0,8.867e-05,2]
[395356798,1764652600369,901.1501077,8.867e-05,2]
[395356799,1764652615544,877.8498923,8.778e-05,2]
[395356800,1764652638541,741.90687988,8.778e-05,2]
[395356801,1764652714336,772.05952067,8.767e-05,2]
[395356802,1764652797321,877.8498923,8.778e-05,2]
[395356803,1764652862376,250.0,0.0002,30]
[395356804,1764652902736,173.883,8.78e-05,2]
[395356805,1764653014333,150.0,8.735e-05,2]
[395356806,1764653078597,-150.0,8.823e-05,2]
[395356807,1764653090616,150.0,8.735e-05,2]
[395356810,1764653226126,-150.0,8.912e-05,2]
[395356811,1764653226147,-224.0,8.912e-05,2]
[395356812,1764653226167,-209.19058814,8.957e-05,2]
[395356813,1764653226186,-342.92427841,8.957e-05,2]
[395356814,1764653226208,-214.82171903,8.957e-05,2]
[395356819,1764653252089,-285.17828097,8.957e-05,2]
[395356820,1764653252111,-500.0,8.957e-05,2]
[395356821,1764653252130,-287.01672792,8.957e-05,2]
[395356822,1764653252151,-207.47378113,8.957e-05,2]
[395356824,1764653354286,-300.0,8.955e-05,2]
[395356825,1764653354308,-150.0,8.955e-05,2]
[395356826,1764653354328,-500.0,8.956e-05,2]
[395356827,1764653354352,-500.0,8.956e-05,2]
[395356828,1764653354374,-321.17868299,8.956e-05,2]
[395356850,1764653431666,-653.1749554,8.866e-05,2]
[395356851,1764653431675,-209.66568536,8.954e-05,2]
[395356878,1764653437776,-293.85354727,8.954e-05,2]
[395356880,1764653437786,-499.7000494,8.954e-05,2]
[395356882,1764653437795,-500.0,8.954e-05,2]
[395356884,1764653437805,-189.53565831,8.954e-05,2]
[395356886,1764653437817,-310.46434169,8.954e-05,2]
[395356888,1764653437830,-517.25904927,8.954e-05,2]
[395356890,1764653437839,-500.0,8.954e-05,2]
[395356892,1764653437849,-557.28658982,8.954e-05,2]
[395356894,1764653437859,-223.0315306,8.954e-05,2]
[395356896,1764653437868,-279.0,8.955e-05,2]
[395356898,1764653437878,-300.0,8.955e-05,2]
[395356900,1764653437887,-1200.0,8.955e-05,2]
[395356902,1764653437897,-178.82131701,8.956e-05,2]
[395356904,1764653437907,-500.0,8.956e-05,2]
[395356907,1764653437916,-500.0,8.956e-05,2]
[395356909,1764653437926,-500.0,8.956e-05,2]
[395356911,1764653437935,-553.96081844,8.956e-05,2]